[Event "*** SCC Grand Prix: Titled Tuesday Blitz"]
[Site "Chess.com"]
[Date "2020.09.08"]
[Round "1"]
[White "elegant285"]
[Black "Jungle_Jaguar"]
[Result "0-1"]
[WhiteElo "2345"]
[BlackElo "2678"]
[TimeControl "180+1"]
[EndTime "10:07:38 PDT"]
[Termination "Jungle_Jaguar won by resignation"]

1. d4 {[%clk 0:03:00.5]} 1... Nf6 {[%clk 0:02:57.1]} 2. c4 {[%clk 0:02:59.8]}
2... g6 {[%clk 0:02:57.3]} 3. Nc3 {[%clk 0:02:59.6]} 3... Bg7 {[%clk 0:02:57.2]}
4. e4 {[%clk 0:02:59.8]} 4... d6 {[%clk 0:02:57.4]} 5. Be2 {[%clk 0:02:59.5]}
5... O-O {[%clk 0:02:57.2]} 6. Bg5 {[%clk 0:02:59.5]} 6... c5 {[%clk 0:02:49.9]}
7. d5 {[%clk 0:02:59.2]} 7... Nbd7 {[%clk 0:02:42.7]} 8. Nf3 {[%clk 0:02:56.2]}
8... h6 {[%clk 0:02:41.2]} 9. Be3 {[%clk 0:02:54.8]} 9... Ng4 {[%clk 0:02:38]}
10. Bc1 {[%clk 0:02:53.4]} 10... Nde5 {[%clk 0:02:32.4]} 11. O-O {[%clk
0:02:51.6]} 11... e6 {[%clk 0:02:27.8]} 12. Bf4 {[%clk 0:02:42.9]} 12... Kh7
{[%clk 0:02:21]} 13. h3 {[%clk 0:02:35.5]} 13... Nxf3+ {[%clk 0:02:21.1]} 14.
Bxf3 {[%clk 0:02:36.4]} 14... Ne5 {[%clk 0:02:21.7]} 15. Be2 {[%clk 0:02:36.7]}
15... Re8 {[%clk 0:02:12.4]} 16. Qd2 {[%clk 0:02:29.9]} 16... exd5 {[%clk
0:02:05.2]} 17. exd5 {[%clk 0:02:30.8]} 17... Bf5 {[%clk 0:01:55.2]} 18. Rfe1
{[%clk 0:02:27.4]} 18... Qh4 {[%clk 0:01:40.9]} 19. Bg3 {[%clk 0:02:22.7]} 19...
Nxc4 {[%clk 0:01:31.9]} 20. Qc1 {[%clk 0:01:59.6]} 20... Qd4 {[%clk 0:01:09.3]}
21. Rd1 {[%clk 0:01:50.3]} 21... Nb6 {[%clk 0:01:05]} 22. Rxd4 {[%clk 0:01:47]}
22... cxd4 {[%clk 0:01:05.9]} 23. Nb5 {[%clk 0:01:35.2]} 23... Rxe2 {[%clk
0:01:04.6]} 24. Nxd6 {[%clk 0:01:32.5]} 24... Bc2 {[%clk 0:01:00.9]} 25. Qf1
{[%clk 0:01:16.9]} 25... d3 {[%clk 0:00:59.9]} 26. Re1 {[%clk 0:01:17.1]} 26...
d2 {[%clk 0:00:51.4]} 27. Qxe2 {[%clk 0:01:13.2]} 27... dxe1=Q+ {[%clk
0:00:47.9]} 28. Qxe1 {[%clk 0:01:14.1]} 28... Rd8 {[%clk 0:00:34.1]} 29. b3
{[%clk 0:00:58.1]} 29... Rd7 {[%clk 0:00:25.4]} 30. Qd2 {[%clk 0:00:56.1]} 30...
Bb1 {[%clk 0:00:24.2]} 31. a4 {[%clk 0:00:45.7]} 31... Bf8 {[%clk 0:00:22.9]}
32. Ne8 {[%clk 0:00:40.1]} 32... Nxd5 {[%clk 0:00:18]} 33. Qa5 {[%clk
0:00:30.9]} 33... b6 {[%clk 0:00:17]} 34. Qb5 {[%clk 0:00:29.8]} 34... Bf5
{[%clk 0:00:17.1]} 35. Bb8 {[%clk 0:00:28]} 35... Be6 {[%clk 0:00:16.7]} 36. a5
{[%clk 0:00:23.7]} 36... Bc5 {[%clk 0:00:14.9]} 37. axb6 {[%clk 0:00:23.3]}
37... axb6 {[%clk 0:00:15.1]} 38. Bg3 {[%clk 0:00:23.3]} 38... Kg8 {[%clk
0:00:15]} 39. Qc6 {[%clk 0:00:22]} 39... Kf8 {[%clk 0:00:15.1]} 40. Nf6 {[%clk
0:00:21]} 40... Nxf6 {[%clk 0:00:14.6]} 41. Bf4 {[%clk 0:00:20]} 41... Kg7
{[%clk 0:00:14.5]} 42. Qc8 {[%clk 0:00:19.3]} 42... Rd1+ {[%clk 0:00:14.3]} 43.
Kh2 {[%clk 0:00:19.1]} 43... Bxc8 {[%clk 0:00:15.2]} 44. g3 {[%clk 0:00:17.6]}
44... Bd6 {[%clk 0:00:15.7]} 0-1

[Event "*** SCC Grand Prix: Titled Tuesday Blitz"]
[Site "Chess.com"]
[Date "2020.09.08"]
[Round "1"]
[White "alejogarcia1999"]
[Black "chito89"]
[Result "0-1"]
[WhiteElo "2370"]
[BlackElo "2718"]
[TimeControl "180+1"]
[EndTime "10:07:42 PDT"]
[Termination "chito89 won by resignation"]

1. Nf3 {[%clk 0:02:58]} 1... Nf6 {[%clk 0:02:59.2]} 2. g3 {[%clk 0:02:58.9]}
2... d5 {[%clk 0:02:58.6]} 3. Bg2 {[%clk 0:02:59.8]} 3... Bg4 {[%clk 0:02:58.4]}
4. O-O {[%clk 0:03:00.7]} 4... Nbd7 {[%clk 0:02:56.1]} 5. c4 {[%clk 0:02:59.5]}
5... e6 {[%clk 0:02:55.1]} 6. cxd5 {[%clk 0:02:59]} 6... exd5 {[%clk 0:02:56]}
7. d3 {[%clk 0:02:59.7]} 7... Be7 {[%clk 0:02:53.9]} 8. Nc3 {[%clk 0:02:59.7]}
8... O-O {[%clk 0:02:48]} 9. h3 {[%clk 0:02:59.2]} 9... Bxf3 {[%clk 0:02:39.6]}
10. Bxf3 {[%clk 0:02:59.4]} 10... c6 {[%clk 0:02:40.4]} 11. e4 {[%clk
0:02:58.8]} 11... dxe4 {[%clk 0:02:39.8]} 12. dxe4 {[%clk 0:02:57.7]} 12... Re8
{[%clk 0:02:35.6]} 13. Be3 {[%clk 0:02:53.2]} 13... Bc5 {[%clk 0:02:35.2]} 14.
Bg5 {[%clk 0:02:50]} 14... h6 {[%clk 0:02:15.9]} 15. Bxf6 {[%clk 0:02:41.4]}
15... Qxf6 {[%clk 0:02:16.8]} 16. Bg2 {[%clk 0:02:06.3]} 16... Rad8 {[%clk
0:02:03]} 17. Qc2 {[%clk 0:01:52.8]} 17... Ne5 {[%clk 0:02:00.4]} 18. Rad1
{[%clk 0:01:51.9]} 18... Nf3+ {[%clk 0:01:57.4]} 19. Kh1 {[%clk 0:01:49.7]}
19... Nd4 {[%clk 0:01:50.9]} 20. Qc1 {[%clk 0:01:41.6]} 20... Bb6 {[%clk
0:01:45.9]} 21. Na4 {[%clk 0:01:34.3]} 21... h5 {[%clk 0:01:20]} 22. Nxb6 {[%clk
0:01:32.6]} 22... axb6 {[%clk 0:01:20.9]} 23. h4 {[%clk 0:01:23.5]} 23... c5
{[%clk 0:01:16]} 24. Qg5 {[%clk 0:01:23.2]} 24... Qxg5 {[%clk 0:01:05.4]} 25.
hxg5 {[%clk 0:01:23.2]} 25... Ne6 {[%clk 0:00:40.2]} 26. f4 {[%clk 0:01:20.3]}
26... h4 {[%clk 0:00:38.9]} 27. Kh2 {[%clk 0:01:10]} 27... hxg3+ {[%clk
0:00:37.1]} 28. Kxg3 {[%clk 0:01:10.8]} 28... Nd4 {[%clk 0:00:32.8]} 29. e5
{[%clk 0:01:08.8]} 29... Nc2 {[%clk 0:00:27.3]} 30. Kf2 {[%clk 0:01:02.2]} 30...
Nb4 {[%clk 0:00:26.7]} 31. Bxb7 {[%clk 0:00:56.2]} 31... Nd3+ {[%clk 0:00:24.9]}
32. Kf3 {[%clk 0:00:55.2]} 32... Nxb2 {[%clk 0:00:25.2]} 33. Rb1 {[%clk
0:00:54.1]} 33... Nc4 {[%clk 0:00:24]} 34. Kg2 {[%clk 0:00:45]} 34... Ne3+
{[%clk 0:00:22]} 35. Kf2 {[%clk 0:00:43.9]} 35... Nxf1 {[%clk 0:00:21.8]} 36.
Kxf1 {[%clk 0:00:43.6]} 36... Rd2 {[%clk 0:00:21]} 37. a4 {[%clk 0:00:42.9]}
37... Ra2 {[%clk 0:00:16]} 38. Rxb6 {[%clk 0:00:40.1]} 38... Rd8 {[%clk
0:00:13.7]} 39. Bf3 {[%clk 0:00:39.3]} 39... Rxa4 {[%clk 0:00:13.1]} 40. Rb1
{[%clk 0:00:37.9]} 40... Rxf4 {[%clk 0:00:13.1]} 41. Kg2 {[%clk 0:00:38.1]}
41... Rf5 {[%clk 0:00:12.8]} 42. Re1 {[%clk 0:00:36.5]} 42... Rd2+ {[%clk
0:00:11.4]} 43. Kg3 {[%clk 0:00:35.9]} 43... Rd3 {[%clk 0:00:11.7]} 44. Rf1
{[%clk 0:00:36]} 44... g6 {[%clk 0:00:10.2]} 45. Kg4 {[%clk 0:00:36]} 45... Rd4+
{[%clk 0:00:10.5]} 46. Kg3 {[%clk 0:00:35.7]} 46... Rxg5+ {[%clk 0:00:10.8]} 47.
Kh3 {[%clk 0:00:34.6]} 47... Rxe5 {[%clk 0:00:10.9]} 48. Bg4 {[%clk 0:00:34.2]}
48... Re3+ {[%clk 0:00:10.9]} 49. Kh4 {[%clk 0:00:34.2]} 49... Ree4 {[%clk
0:00:10.8]} 50. Kg5 {[%clk 0:00:34.1]} 50... Rxg4+ {[%clk 0:00:11]} 0-1

[Event "*** SCC Grand Prix: Titled Tuesday Blitz"]
[Site "Chess.com"]
[Date "2020.09.08"]
[Round "1"]
[White "MarceloPlaya"]
[Black "Rozum_Ivan"]
[Result "0-1"]
[WhiteElo "2369"]
[BlackElo "2717"]
[TimeControl "180+1"]
[EndTime "10:07:42 PDT"]
[Termination "Rozum_Ivan won on time"]

1. e4 {[%clk 0:02:59.2]} 1... c6 {[%clk 0:02:59.8]} 2. d4 {[%clk 0:02:58]} 2...
d5 {[%clk 0:03:00.7]} 3. e5 {[%clk 0:02:57.4]} 3... Bf5 {[%clk 0:03:00.5]} 4. g4
{[%clk 0:02:57.3]} 4... Bd7 {[%clk 0:02:58.6]} 5. Nc3 {[%clk 0:02:54.9]} 5... e6
{[%clk 0:02:58.6]} 6. Be3 {[%clk 0:02:48.4]} 6... Qc7 {[%clk 0:02:55.1]} 7. Qd2
{[%clk 0:02:47.5]} 7... c5 {[%clk 0:02:55.1]} 8. O-O-O {[%clk 0:02:45.1]} 8...
cxd4 {[%clk 0:02:51]} 9. Bxd4 {[%clk 0:02:44.4]} 9... Nc6 {[%clk 0:02:49.9]} 10.
f4 {[%clk 0:02:37.6]} 10... Nxd4 {[%clk 0:02:49.4]} 11. Qxd4 {[%clk 0:02:36.8]}
11... Bc5 {[%clk 0:02:48.7]} 12. Qd3 {[%clk 0:02:34.8]} 12... O-O-O {[%clk
0:02:47.3]} 13. Nf3 {[%clk 0:02:31.7]} 13... h5 {[%clk 0:02:43.9]} 14. gxh5
{[%clk 0:02:17.1]} 14... Rxh5 {[%clk 0:02:44.8]} 15. Nd4 {[%clk 0:02:16.5]}
15... Ne7 {[%clk 0:02:39.7]} 16. Be2 {[%clk 0:02:08.3]} 16... Rh6 {[%clk
0:02:29.9]} 17. Rdg1 {[%clk 0:01:56.7]} 17... g6 {[%clk 0:02:29.3]} 18. Rg2
{[%clk 0:01:51.8]} 18... Rdh8 {[%clk 0:02:28.7]} 19. Kb1 {[%clk 0:01:36.8]}
19... Rh3 {[%clk 0:02:25.4]} 20. Qd2 {[%clk 0:01:30.7]} 20... Qb6 {[%clk
0:02:23]} 21. Ndb5 {[%clk 0:01:19.3]} 21... Qa5 {[%clk 0:01:55.4]} 22. Nd6+
{[%clk 0:01:15.1]} 22... Bxd6 {[%clk 0:01:52.9]} 23. exd6 {[%clk 0:01:15]} 23...
Nf5 {[%clk 0:01:51]} 24. a3 {[%clk 0:00:54.1]} 24... Nxd6 {[%clk 0:01:48]} 25.
Qd4 {[%clk 0:00:51.2]} 25... Qb6 {[%clk 0:01:43.9]} 26. Qf6 {[%clk 0:00:47.1]}
26... R8h7 {[%clk 0:01:28.2]} 27. Ka1 {[%clk 0:00:45.6]} 27... d4 {[%clk
0:01:25.8]} 28. Nd1 {[%clk 0:00:39.4]} 28... Qc5 {[%clk 0:01:23.2]} 29. Nf2
{[%clk 0:00:34.1]} 29... Re3 {[%clk 0:01:22.2]} 30. Nd3 {[%clk 0:00:32.5]} 30...
Qd5 {[%clk 0:01:17.8]} 31. Rhg1 {[%clk 0:00:19.4]} 31... a5 {[%clk 0:01:05.4]}
32. Qe7 {[%clk 0:00:18.5]} 32... Nf5 {[%clk 0:01:00.4]} 33. Qf8+ {[%clk
0:00:17.3]} 33... Kc7 {[%clk 0:01:00.9]} 34. Ne5 {[%clk 0:00:16.4]} 34... Rxe5
{[%clk 0:00:52.8]} 35. fxe5 {[%clk 0:00:14.5]} 35... Qxe5 {[%clk 0:00:50.4]} 36.
Bf3 {[%clk 0:00:13.8]} 36... Qd6 {[%clk 0:00:42.1]} 37. Qa8 {[%clk 0:00:12.3]}
37... Qb6 {[%clk 0:00:42.2]} 38. Rd2 {[%clk 0:00:10.3]} 38... a4 {[%clk
0:00:37.9]} 39. Rgd1 {[%clk 0:00:09.4]} 39... Qc5 {[%clk 0:00:35.7]} 40. Qxb7+
{[%clk 0:00:07.9]} 40... Kd6 {[%clk 0:00:33.6]} 41. Qb8+ {[%clk 0:00:07.7]}
41... Ke7 {[%clk 0:00:33.4]} 42. Be4 {[%clk 0:00:07.8]} 42... Ne3 {[%clk
0:00:32.3]} 43. Re1 {[%clk 0:00:04.3]} 43... e5 {[%clk 0:00:31.3]} 44. Bd3
{[%clk 0:00:04.1]} 44... Qd6 {[%clk 0:00:29.2]} 45. Qa7 {[%clk 0:00:01.7]} 45...
Rh8 {[%clk 0:00:27.3]} 46. Qa5 {[%clk 0:00:01.4]} 46... Rb8 {[%clk 0:00:25.7]}
47. c3 {[%clk 0:00:01.3]} 47... f6 {[%clk 0:00:24.7]} 48. cxd4 {[%clk
0:00:01.3]} 48... Qxd4 {[%clk 0:00:25.6]} 0-1

[Event "*** SCC Grand Prix: Titled Tuesday Blitz"]
[Site "Chess.com"]
[Date "2020.09.08"]
[Round "1"]
[White "BAS8892"]
[Black "PauloCesarCosta_sad"]
[Result "1-0"]
[WhiteElo "2612"]
[BlackElo "2288"]
[TimeControl "180+1"]
[EndTime "10:07:42 PDT"]
[Termination "BAS8892 won on time"]

1. d4 {[%clk 0:03:00.9]} 1... d5 {[%clk 0:02:59.6]} 2. c4 {[%clk 0:02:59.1]}
2... c6 {[%clk 0:02:58.6]} 3. Nc3 {[%clk 0:02:53.7]} 3... Nf6 {[%clk 0:02:56]}
4. Nf3 {[%clk 0:02:51.3]} 4... e6 {[%clk 0:02:55.7]} 5. e3 {[%clk 0:02:44.8]}
5... Nbd7 {[%clk 0:02:53.4]} 6. Qc2 {[%clk 0:02:44.5]} 6... Bd6 {[%clk
0:02:52.3]} 7. Be2 {[%clk 0:02:44]} 7... O-O {[%clk 0:02:51.7]} 8. O-O {[%clk
0:02:43.8]} 8... Qe7 {[%clk 0:02:30.2]} 9. b3 {[%clk 0:02:41.2]} 9... dxc4
{[%clk 0:02:19.3]} 10. bxc4 {[%clk 0:02:39.8]} 10... e5 {[%clk 0:02:19.4]} 11.
h3 {[%clk 0:02:31.2]} 11... exd4 {[%clk 0:01:32.8]} 12. exd4 {[%clk 0:02:30]}
12... Re8 {[%clk 0:01:26.8]} 13. Bd3 {[%clk 0:02:27.6]} 13... h6 {[%clk
0:01:23.8]} 14. Bb2 {[%clk 0:02:22.9]} 14... Nf8 {[%clk 0:01:21.9]} 15. Rfe1
{[%clk 0:02:21.7]} 15... Qc7 {[%clk 0:01:21.3]} 16. d5 {[%clk 0:02:11.3]} 16...
Rxe1+ {[%clk 0:01:18.8]} 17. Rxe1 {[%clk 0:02:10.5]} 17... Bd7 {[%clk
0:01:17.8]} 18. dxc6 {[%clk 0:02:08.2]} 18... Bxc6 {[%clk 0:01:17.5]} 19. Nb5
{[%clk 0:02:06]} 19... Bxb5 {[%clk 0:01:16.8]} 20. cxb5 {[%clk 0:02:05.8]} 20...
Qxc2 {[%clk 0:01:16.1]} 21. Bxc2 {[%clk 0:02:05.9]} 21... Re8 {[%clk 0:00:58.3]}
22. Rd1 {[%clk 0:02:04.3]} 22... Bc5 {[%clk 0:00:49.5]} 23. Kf1 {[%clk
0:02:04.3]} 23... Ne4 {[%clk 0:00:37.5]} 24. Bxe4 {[%clk 0:01:57.7]} 24... Rxe4
{[%clk 0:00:37.3]} 25. Rd8 {[%clk 0:01:28.2]} 25... f6 {[%clk 0:00:34]} 26. Nd4
{[%clk 0:01:15.1]} 26... Bxd4 {[%clk 0:00:33.3]} 27. Bxd4 {[%clk 0:01:13.6]}
27... b6 {[%clk 0:00:30.4]} 28. f3 {[%clk 0:01:10.9]} 28... Re7 {[%clk
0:00:27.6]} 29. Bc3 {[%clk 0:01:08]} 29... Rd7 {[%clk 0:00:26.9]} 30. Ra8 {[%clk
0:01:03.4]} 30... Kf7 {[%clk 0:00:26.1]} 31. Ke2 {[%clk 0:01:01.7]} 31... Ne6
{[%clk 0:00:25.5]} 32. g3 {[%clk 0:00:57.6]} 32... Nc5 {[%clk 0:00:24.3]} 33.
Bd2 {[%clk 0:00:49.9]} 33... Re7+ {[%clk 0:00:23.7]} 34. Be3 {[%clk 0:00:45.8]}
34... g5 {[%clk 0:00:20.4]} 35. Kd2 {[%clk 0:00:40.4]} 35... Ne6 {[%clk
0:00:19.9]} 36. a4 {[%clk 0:00:36.3]} 36... Rd7+ {[%clk 0:00:20]} 37. Kc3 {[%clk
0:00:34.7]} 37... Rc7+ {[%clk 0:00:19.6]} 38. Kb4 {[%clk 0:00:33.1]} 38... Rd7
{[%clk 0:00:17.3]} 39. a5 {[%clk 0:00:31]} 39... bxa5+ {[%clk 0:00:16.4]} 40.
Kxa5 {[%clk 0:00:31.1]} 40... Rd3 {[%clk 0:00:12.7]} 41. Bxa7 {[%clk 0:00:29.8]}
41... Rxf3 {[%clk 0:00:11.3]} 42. b6 {[%clk 0:00:29]} 42... Rxg3 {[%clk
0:00:05.2]} 43. Rc8 {[%clk 0:00:25.7]} 43... Nd8 {[%clk 0:00:01.5]} 44. Rxd8
{[%clk 0:00:24.8]} 44... Ra3+ {[%clk 0:00:01.3]} 45. Kb4 {[%clk 0:00:24]} 45...
Ra1 {[%clk 0:00:01.6]} 46. b7 {[%clk 0:00:23.6]} 46... Rb1+ {[%clk 0:00:02.5]}
47. Kc4 {[%clk 0:00:23.4]} 47... Rxb7 {[%clk 0:00:02.4]} 48. Bd4 {[%clk
0:00:22.4]} 1-0

[Event "*** SCC Grand Prix: Titled Tuesday Blitz"]
[Site "Chess.com"]
[Date "2020.09.08"]
[Round "1"]
[White "PawnEatingZombie"]
[Black "ASVZ"]
[Result "0-1"]
[WhiteElo "2140"]
[BlackElo "2517"]
[TimeControl "180+1"]
[EndTime "10:07:42 PDT"]
[Termination "ASVZ won on time"]

1. d4 {[%clk 0:03:00.9]} 1... e6 {[%clk 0:03:00.4]} 2. c4 {[%clk 0:03:00.2]}
2... b6 {[%clk 0:03:00.9]} 3. e4 {[%clk 0:02:59.7]} 3... Bb7 {[%clk 0:03:01.5]}
4. Nc3 {[%clk 0:03:00.2]} 4... Bb4 {[%clk 0:03:00.7]} 5. Qc2 {[%clk 0:03:00.7]}
5... Qh4 {[%clk 0:03:00.1]} 6. Bd3 {[%clk 0:02:50]} 6... f5 {[%clk 0:03:00.3]}
7. Nf3 {[%clk 0:02:47]} 7... Bxc3+ {[%clk 0:03:00.6]} 8. Qxc3 {[%clk 0:02:44.5]}
8... Qg4 {[%clk 0:03:01.5]} 9. exf5 {[%clk 0:02:40.7]} 9... Qxg2 {[%clk
0:03:01]} 10. Rg1 {[%clk 0:02:39.7]} 10... Qxf3 {[%clk 0:03:01.1]} 11. d5 {[%clk
0:02:37]} 11... Na6 {[%clk 0:02:43.4]} 12. Qxg7 {[%clk 0:02:23.6]} 12... O-O-O
{[%clk 0:02:41.6]} 13. Be2 {[%clk 0:02:09.7]} 13... Qxf5 {[%clk 0:02:39.9]} 14.
Qxh8 {[%clk 0:02:03.7]} 14... Nf6 {[%clk 0:02:39.9]} 15. Qg7 {[%clk 0:02:01.5]}
15... Nb4 {[%clk 0:02:38.7]} 16. Kf1 {[%clk 0:01:46.1]} 16... Nd3 {[%clk
0:02:27.2]} 17. Qg3 {[%clk 0:01:21.3]} 17... Ne4 {[%clk 0:02:06.3]} 18. Qf3
{[%clk 0:01:20.7]} 18... Qxf3 {[%clk 0:01:30.2]} 19. Bxf3 {[%clk 0:01:20]} 19...
exd5 {[%clk 0:01:31.1]} 20. cxd5 {[%clk 0:01:05.8]} 20... Bxd5 {[%clk 0:01:32]}
21. Bxe4 {[%clk 0:01:01.6]} 21... Bxe4 {[%clk 0:01:32.4]} 22. Be3 {[%clk
0:01:00.6]} 22... Nxb2 {[%clk 0:01:31.9]} 23. Rg7 {[%clk 0:00:55.2]} 23... d5
{[%clk 0:01:30.4]} 24. Rc1 {[%clk 0:00:49.7]} 24... Nc4 {[%clk 0:01:30.1]} 25.
Bf4 {[%clk 0:00:46.3]} 25... Rd7 {[%clk 0:01:28.4]} 26. Rxd7 {[%clk 0:00:44.9]}
26... Kxd7 {[%clk 0:01:29.3]} 27. Ke2 {[%clk 0:00:36.1]} 27... c5 {[%clk
0:01:29]} 28. f3 {[%clk 0:00:34.6]} 28... Bg6 {[%clk 0:01:29.1]} 29. h4 {[%clk
0:00:22.1]} 29... b5 {[%clk 0:01:28.2]} 30. Rg1 {[%clk 0:00:14.5]} 30... d4
{[%clk 0:01:27.4]} 31. h5 {[%clk 0:00:14.2]} 31... d3+ {[%clk 0:01:24.1]} 32.
Kf2 {[%clk 0:00:11.9]} 32... Bf5 {[%clk 0:01:22.8]} 33. Rg7+ {[%clk 0:00:09.5]}
33... Kc6 {[%clk 0:01:23.3]} 34. Rxa7 {[%clk 0:00:09.1]} 34... b4 {[%clk
0:01:22.9]} 35. Ra6+ {[%clk 0:00:07.4]} 35... Kb5 {[%clk 0:01:22.5]} 36. Rf6
{[%clk 0:00:07.2]} 36... Bc8 {[%clk 0:01:16.4]} 37. Rh6 {[%clk 0:00:06.7]} 37...
Bf5 {[%clk 0:01:15.8]} 38. Rf6 {[%clk 0:00:06.1]} 38... Bc8 {[%clk 0:01:15.5]}
39. Rf7 {[%clk 0:00:05.3]} 39... Nb6 {[%clk 0:01:04.8]} 40. Rxh7 {[%clk
0:00:04.7]} 40... Nd5 {[%clk 0:01:05.5]} 41. Rf7 {[%clk 0:00:04.2]} 41... Be6
{[%clk 0:01:04]} 42. Rf8 {[%clk 0:00:03.7]} 42... c4 {[%clk 0:01:00.2]} 43. h6
{[%clk 0:00:02.3]} 43... c3 {[%clk 0:00:59.9]} 44. h7 {[%clk 0:00:02.2]} 44...
Nxf4 {[%clk 0:00:57.2]} 45. Rxf4 {[%clk 0:00:01.6]} 45... d2 {[%clk 0:00:58.1]}
46. h8=Q {[%clk 0:00:01.7]} 46... d1=Q {[%clk 0:00:56.9]} 47. Qb8+ {[%clk
0:00:02.6]} 47... Kc6 {[%clk 0:00:54.8]} 48. Qa8+ {[%clk 0:00:02]} 48... Kd6
{[%clk 0:00:48]} 49. Qa6+ {[%clk 0:00:02.3]} 49... Ke7 {[%clk 0:00:48.1]} 50.
Qe2 {[%clk 0:00:02.1]} 50... Qh1 {[%clk 0:00:43.8]} 51. Re4 {[%clk 0:00:01.6]}
51... Qh2+ {[%clk 0:00:41.4]} 52. Ke1 {[%clk 0:00:01.7]} 52... Qg1+ {[%clk
0:00:41]} 53. Qf1 {[%clk 0:00:01.2]} 53... Qg5 {[%clk 0:00:24.9]} 0-1

[Event "*** SCC Grand Prix: Titled Tuesday Blitz"]
[Site "Chess.com"]
[Date "2020.09.08"]
[Round "1"]
[White "Jospem"]
[Black "chenxiaoyuer"]
[Result "1-0"]
[WhiteElo "2931"]
[BlackElo "2459"]
[TimeControl "180+1"]
[EndTime "10:07:44 PDT"]
[Termination "Jospem won by checkmate"]

1. e4 {[%clk 0:03:00.9]} 1... c5 {[%clk 0:02:57.6]} 2. Nf3 {[%clk 0:03:00.9]}
2... d6 {[%clk 0:02:56.7]} 3. c3 {[%clk 0:03:01.3]} 3... Nf6 {[%clk 0:02:54.6]}
4. h3 {[%clk 0:03:01.3]} 4... Nc6 {[%clk 0:02:47]} 5. Bd3 {[%clk 0:03:01.2]}
5... d5 {[%clk 0:02:45.9]} 6. e5 {[%clk 0:03:01.3]} 6... c4 {[%clk 0:02:45]} 7.
Bc2 {[%clk 0:02:43.9]} 7... Nd7 {[%clk 0:02:43.6]} 8. Qe2 {[%clk 0:02:44]} 8...
g6 {[%clk 0:02:20.5]} 9. b3 {[%clk 0:02:33.9]} 9... Bg7 {[%clk 0:01:43.8]} 10.
e6 {[%clk 0:02:32.9]} 10... fxe6 {[%clk 0:01:41.4]} 11. bxc4 {[%clk 0:02:32.9]}
11... Nde5 {[%clk 0:01:34.9]} 12. Nxe5 {[%clk 0:02:27.9]} 12... Nxe5 {[%clk
0:01:30.9]} 13. Na3 {[%clk 0:02:26.8]} 13... O-O {[%clk 0:01:27.2]} 14. O-O
{[%clk 0:02:26]} 14... b6 {[%clk 0:01:22.8]} 15. cxd5 {[%clk 0:02:21.7]} 15...
exd5 {[%clk 0:01:17.2]} 16. d4 {[%clk 0:02:20.9]} 16... Nc6 {[%clk 0:01:11.2]}
17. Bg5 {[%clk 0:02:14.2]} 17... Bf6 {[%clk 0:00:53.1]} 18. Bh6 {[%clk
0:02:02.5]} 18... Re8 {[%clk 0:00:49.7]} 19. f4 {[%clk 0:01:41.4]} 19... a6
{[%clk 0:00:41]} 20. Kh1 {[%clk 0:01:24.3]} 20... Qd6 {[%clk 0:00:39.5]} 21. Nb1
{[%clk 0:01:21.3]} 21... Na5 {[%clk 0:00:23.5]} 22. Nd2 {[%clk 0:01:19.6]} 22...
Qc6 {[%clk 0:00:19.2]} 23. Rac1 {[%clk 0:01:08.8]} 23... b5 {[%clk 0:00:16.8]}
24. f5 {[%clk 0:00:55.6]} 24... gxf5 {[%clk 0:00:12.8]} 25. Bxf5 {[%clk
0:00:53.8]} 25... Bxf5 {[%clk 0:00:12.3]} 26. Rxf5 {[%clk 0:00:54.7]} 26... Kh8
{[%clk 0:00:12.5]} 27. Bg5 {[%clk 0:00:36]} 27... Bxd4 {[%clk 0:00:09.6]} 28.
cxd4 {[%clk 0:00:13.8]} 28... Qxc1+ {[%clk 0:00:09.2]} 29. Kh2 {[%clk
0:00:14.7]} 29... Nc6 {[%clk 0:00:07.5]} 30. Nf3 {[%clk 0:00:12.8]} 30... Qb1
{[%clk 0:00:05.9]} 31. Qe6 {[%clk 0:00:11.7]} 31... Qe4 {[%clk 0:00:05.4]} 32.
Ne5 {[%clk 0:00:10.4]} 32... Nxe5 {[%clk 0:00:04.8]} 33. Rxe5 {[%clk 0:00:11]}
33... Qg6 {[%clk 0:00:05]} 34. Qxd5 {[%clk 0:00:09.4]} 34... Rad8 {[%clk
0:00:04.6]} 35. Qc5 {[%clk 0:00:09.7]} 35... Rd7 {[%clk 0:00:04.3]} 36. d5
{[%clk 0:00:09.3]} 36... Qd6 {[%clk 0:00:03.3]} 37. Qd4 {[%clk 0:00:08.7]} 37...
Kg8 {[%clk 0:00:03.1]} 38. Bf4 {[%clk 0:00:08.9]} 38... Qf6 {[%clk 0:00:02.8]}
39. Qe4 {[%clk 0:00:09.2]} 39... Qg6 {[%clk 0:00:02.8]} 40. Rg5 {[%clk
0:00:09.2]} 40... Qxg5 {[%clk 0:00:02.9]} 41. Bxg5 {[%clk 0:00:10.1]} 41... Rd6
{[%clk 0:00:03.7]} 42. Bf4 {[%clk 0:00:10]} 42... Rg6 {[%clk 0:00:03.9]} 43. d6
{[%clk 0:00:09.3]} 43... e6 {[%clk 0:00:03.4]} 44. Qc6 {[%clk 0:00:08.4]} 44...
Rd8 {[%clk 0:00:03.6]} 45. Qc7 {[%clk 0:00:08.8]} 45... Rf8 {[%clk 0:00:03.6]}
46. d7 {[%clk 0:00:08.8]} 46... Rgf6 {[%clk 0:00:04.1]} 47. d8=Q {[%clk
0:00:08.9]} 47... Rxd8 {[%clk 0:00:05]} 48. Qxd8+ {[%clk 0:00:09.8]} 48... Rf8
{[%clk 0:00:05.8]} 49. Qg5+ {[%clk 0:00:09.8]} 49... Kh8 {[%clk 0:00:05.5]} 50.
Be5+ {[%clk 0:00:09.8]} 50... Rf6 {[%clk 0:00:06.2]} 51. Bxf6# {[%clk
0:00:10.2]} 1-0